fUST/lending_fUST_20250812
["ID","MTS","AMOUNT","RATE_DAILY","PERIOD"]
[378664952,1754950247088,-160.0,0.0001947,2]
[378664954,1754950247098,-160.0,0.0001947,2]
[378664956,1754950247107,-527.9539256,0.0001947,2]
[378664958,1754950247116,-216.68257536,0.0001947,2]
[378664959,1754950247126,-231.9940742,0.0001947,2]
[378664960,1754950247135,-461.69158338,0.0001947,2]
[378664961,1754950247144,-500.0,0.00019473,2]
[378664962,1754950247153,-160.06669641,0.00019473,2]
[378664963,1754950247163,-158.04855828,0.00019473,2]
[378664964,1754950247172,-500.0,0.00019473,2]
[378664965,1754950247181,-500.0,0.00019473,2]
[378664966,1754950247191,-500.0,0.00019473,2]
[378664967,1754950247200,-500.0,0.00019473,2]
[378664968,1754950247210,-157.04278845,0.00019473,2]
[378664969,1754950247219,-160.06318468,0.00019473,2]
[378664970,1754950247228,-160.06638324,0.00019473,2]
[378664971,1754950247238,-258.42704119,0.00019473,2]
[378664972,1754950247247,-165.05050708,0.00019473,2]
[378664973,1754950247257,-500.0,0.00019473,2]
[378664974,1754950247267,-500.0,0.00019473,2]
[378664975,1754950247276,-158.46538666,0.00019473,2]
[378664976,1754950247286,-158.46577498,0.00019473,2]
[378664977,1754950247295,-188.47570756,0.00019473,2]
[378664978,1754950247305,-158.04855828,0.00019473,2]
[378664979,1754950247314,-500.0,0.00019473,2]
[378664980,1754950247323,-160.17133691,0.00019473,2]
[378664981,1754950247333,-185.25659566,0.00019473,2]
[378664982,1754950247342,-158.46444877,0.00019473,2]
[378664983,1754950247351,-500.0,0.00019473,2]
[378664984,1754950247360,-500.0,0.00019473,2]
[378664985,1754950247371,-160.46192181,0.00019473,2]
[378664986,1754950247381,-500.0,0.00019473,2]
[378664987,1754950247390,-173.54530953,0.00019473,2]
[378664988,1754950247399,-500.0,0.00019473,2]
[378664989,1754950247409,-621.55254894,0.00019473,2]
[378664990,1754950247418,-216.82734154,0.00019473,2]
[378664991,1754950247427,-500.0,0.00019473,2]
[378664992,1754950247437,-448.81982586,0.00019473,2]
[378664993,1754950247446,-500.78623683,0.00019473,2]
[378664994,1754950247455,-168.72970159,0.00019473,2]
[378664996,1754950247465,-500.0,0.00019473,2]
[378664998,1754950247474,-154.43239774,0.00019473,2]
[378665000,1754950247483,-500.0,0.00019473,2]
[378665002,1754950247492,-500.0,0.00019473,2]
[378665003,1754950247502,-521.33546473,0.00019473,2]
[378665006,1754950247512,-500.0,0.00019473,2]
[378665007,1754950247521,-500.0,0.00019473,2]
[378665009,1754950247530,-500.0,0.00019473,2]
[378665011,1754950247540,-500.0,0.00019473,2]
[378665012,1754950247549,-500.0,0.00019473,2]
[378665014,1754950247558,-500.0,0.00019473,2]
[378665016,1754950247568,-500.0,0.00019473,2]
[378665018,1754950247577,-500.0,0.00019473,2]
[378665020,1754950247586,-500.0,0.00019473,2]
[378665021,1754950247596,-500.0,0.00019473,2]
[378665023,1754950247605,-500.0,0.00019473,2]
[378665024,1754950247615,-500.0,0.00019473,2]
[378665025,1754950247625,-500.0,0.00019473,2]
[378665026,1754950247636,-500.0,0.00019473,2]
[378665027,1754950247645,-500.0,0.00019473,2]
[378665028,1754950247655,-504.04152628,0.00019473,2]
[378665029,1754950247665,-445.11431374,0.00019473,2]
[378665030,1754950247674,-500.0,0.00019473,2]
[378665031,1754950247684,-500.0,0.00019473,2]
[378665032,1754950247694,-156.469908,0.00019477,3]
[378665033,1754950247703,-597.55159323,0.00019489,2]
[378665034,1754950247714,-150.0,0.00019524,2]
[378665035,1754950247724,-150.0,0.00019524,2]
[378665036,1754950247733,-220.585,0.00019524,2]
[378665037,1754950247743,-150.0,0.00019551,2]
[378665038,1754950247752,-150.0,0.00019551,2]
[378665039,1754950247761,-245.0,0.00019551,2]
[378665040,1754950247770,-636.0,0.00019551,2]
[378665041,1754950247780,-971.0,0.00019551,2]
[378665042,1754950247789,-2151.0,0.00019551,2]
[378665043,1754950247798,-307.377732,0.00019552,2]
[378665044,1754950247808,-307.377732,0.00019552,2]
[378665045,1754950247817,-151.0,0.00019552,2]
[378665046,1754950247827,-151.0,0.00019552,2]
[378665047,1754950247837,-274.0,0.00019569,2]
[378665048,1754950247849,-447.7,0.00019601,2]
[378665049,1754950247858,-151.0,0.00019626,2]
[378665050,1754950247867,-151.0,0.00019626,2]
[378665051,1754950247876,-20252.38884843,0.00019626,2]
[378665052,1754950247885,-434.59573796,0.00019654,2]
[378665053,1754950247894,-597.55159323,0.00019695,2]
[378665054,1754950247903,-1300.0,0.00019712,2]
[378665055,1754950247913,-151.0,0.00019712,2]
[378665056,1754950247922,-1000.0,0.00019721,2]
[378665057,1754950247931,-1000.0,0.00019721,2]
[378665058,1754950247941,-1000.0,0.00019721,2]
[378665059,1754950247995,-500.0,0.00019721,2]
[378665060,1754950248004,-855.92661282,0.00019721,2]
[378665061,1754950248014,-1000.0,0.00019721,2]
[378665062,1754950248023,-151.566,0.00019725,2]
[378665063,1754950248031,-151.0,0.00019726,2]
[378665064,1754950248040,-460.0,0.00019726,2]
[378665065,1754950248051,-151.0,0.00019726,2]
[378665066,1754950248061,-460.0,0.00019726,2]
[378665067,1754950248071,-460.0,0.00019726,2]
[378665068,1754950248080,-460.0,0.00019726,2]
[378665069,1754950248089,-460.0,0.00019726,2]
[378665070,1754950248099,-460.0,0.00019726,2]
[378665071,1754950248108,-460.0,0.00019726,2]
[378665072,1754950248117,-151.0,0.00019726,2]
[378665073,1754950248127,-460.0,0.00019726,2]
[378665074,1754950248137,-480.72,0.00019726,2]
[378665075,1754950248146,-460.0,0.00019726,2]
[378665076,1754950248155,-460.0,0.00019726,2]
[378665077,1754950248165,-525.01640546,0.00019726,2]
[378665078,1754950248174,-2434.57,0.00019726,2]
[378665079,1754950248184,-460.0,0.00019726,2]
[378665080,1754950248193,-460.0,0.00019726,2]
[378665081,1754950248202,-151.0,0.00019726,2]
[378665082,1754950248212,-278.93396925,0.00019726,2]
[378665083,1754950248221,-183.63284527,0.00019726,2]
[378665084,1754950248231,-557.80497242,0.00019726,2]
[378665085,1754950248240,-460.0,0.00019726,2]
[378665086,1754950248250,-151.0,0.00019726,2]
[378665087,1754950248259,-253.711868,0.00019726,2]
[378665088,1754950248268,-253.711868,0.00019726,2]
[378665089,1754950248278,-460.0,0.00019726,2]
[378665090,1754950248287,-460.0,0.00019726,2]
[378665091,1754950248296,-151.0,0.00019726,2]
[378665092,1754950248305,-460.0,0.00019726,2]
[378665093,1754950248315,-1160.16,0.00019726,2]
[378665094,1754950248324,-460.0,0.00019726,2]
[378665095,1754950248333,-877.59,0.00019726,2]
[378665096,1754950248342,-460.0,0.00019726,2]
[378665097,1754950248351,-460.0,0.00019726,2]
[378665098,1754950248360,-460.0,0.00019726,2]
[378665099,1754950248370,-460.0,0.00019726,2]
[378665100,1754950248380,-524.33,0.00019726,2]
[378665101,1754950248389,-460.0,0.00019726,2]
[378665102,1754950248398,-679.67,0.00019726,2]
[378665103,1754950248407,-460.0,0.00019726,2]
[378665104,1754950248416,-151.0,0.00019726,2]
[378665105,1754950248425,-460.0,0.00019726,2]
[378665106,1754950248435,-460.0,0.00019726,2]
[378665107,1754950248447,-460.0,0.00019726,2]
[378665108,1754950248456,-460.0,0.00019726,2]
[378665109,1754950248466,-594.28,0.00019726,2]
[378665110,1754950248475,-601.09,0.00019726,2]
[378665111,1754950248484,-2334.64,0.00019726,2]
[378665112,1754950248493,-460.0,0.00019726,2]
[378665113,1754950248503,-460.0,0.00019726,2]
[378665114,1754950248512,-522.31078103,0.00019726,2]
[378665115,1754950248521,-746.73,0.00019726,2]
[378665116,1754950248532,-460.0,0.00019726,2]
[378665117,1754950248542,-460.0,0.00019726,2]
[378665118,1754950248551,-460.0,0.00019726,2]
[378665119,1754950248560,-460.0,0.00019726,2]
[378665120,1754950248569,-460.0,0.00019726,2]
[378665121,1754950248578,-460.0,0.00019726,2]
[378665122,1754950248587,-468.8,0.00019726,2]
[378665123,1754950248597,-460.0,0.00019726,2]
[378665124,1754950248606,-460.0,0.00019726,2]
[378665125,1754950248616,-460.0,0.00019726,2]
[378665126,1754950248629,-460.0,0.00019726,2]
[378665127,1754950248638,-551.71,0.00019726,2]
[378665128,1754950248649,-469.63,0.00019726,2]
[378665129,1754950248659,-460.0,0.00019726,2]
[378665130,1754950248668,-897.91,0.00019726,2]
[378665131,1754950248678,-1076.44,0.00019726,2]
[378665132,1754950248687,-460.0,0.00019726,2]
[378665133,1754950248696,-460.0,0.00019726,2]
[378665134,1754950248706,-460.0,0.00019726,2]
[378665135,1754950248716,-622.52,0.00019726,2]
[378665136,1754950248725,-460.0,0.00019726,2]
[378665137,1754950248735,-912.26,0.00019726,2]
[378665138,1754950248744,-460.0,0.00019726,2]
[378665139,1754950248753,-151.0,0.00019726,2]
[378665140,1754950248763,-151.0,0.00019726,2]
[378665141,1754950248772,-460.0,0.00019726,2]
[378665142,1754950248781,-460.0,0.00019726,2]
[378665143,1754950248790,-460.0,0.00019726,2]
[378665144,1754950248799,-460.0,0.00019726,2]
[378665145,1754950248808,-460.0,0.00019726,2]
[378665146,1754950248818,-538.8,0.00019726,2]
[378665147,1754950248827,-460.0,0.00019726,2]
[378665148,1754950248836,-4600.42,0.00019726,2]
[378665149,1754950248845,-241.448217,0.00019726,2]
[378665150,1754950248854,-241.448217,0.00019726,2]
[378665151,1754950248864,-460.0,0.00019726,2]
[378665152,1754950248874,-193.228642,0.00019726,2]
[378665153,1754950248884,-460.0,0.00019726,2]
[378665154,1754950248893,-460.0,0.00019726,2]
[378665155,1754950248902,-3120.27,0.00019726,2]
[378665156,1754950248911,-460.0,0.00019726,2]
[378665157,1754950248921,-227.234988,0.00019726,2]
[378665158,1754950248930,-1262.73,0.00019726,2]
[378665159,1754950248939,-460.0,0.00019726,2]
[378665160,1754950248948,-151.0,0.00019726,2]
[378665161,1754950248958,-563.99,0.00019726,2]
[378665162,1754950248967,-1763.437769,0.00019726,2]
[378665163,1754950248977,-1763.437769,0.00019726,2]
[378665164,1754950248986,-151.0,0.00019726,2]
[378665165,1754950248995,-1763.437769,0.00019726,2]
[378665166,1754950249005,-1763.437769,0.00019726,2]
[378665167,1754950249014,-208.870634,0.00019726,2]
[378665168,1754950249023,-561.52,0.00019726,2]
[378665169,1754950249033,-460.0,0.00019726,2]
[378665170,1754950249042,-460.0,0.00019726,2]
[378665171,1754950249053,-460.0,0.00019726,2]
[378665172,1754950249063,-151.0,0.00019726,2]
[378665173,1754950249072,-460.0,0.00019726,2]
[378665174,1754950249081,-761.03,0.00019726,2]
[378665175,1754950249090,-460.0,0.00019726,2]
[378665176,1754950249099,-634.09,0.00019726,2]
[378665177,1754950249108,-460.0,0.00019726,2]
[378665178,1754950249118,-460.0,0.00019726,2]
[378665179,1754950249127,-460.0,0.00019726,2]
[378665180,1754950249137,-460.0,0.00019726,2]
[378665181,1754950249146,-267.90614775,0.00019726,2]
[378665182,1754950249155,-826.21,0.00019726,2]
[378665183,1754950249164,-197.069922,0.00019726,2]
[378665184,1754950249173,-263.5790351,0.00019726,2]
[378665185,1754950249183,-151.0,0.00019726,2]
[378665186,1754950249192,-151.0,0.00019726,2]
[378665187,1754950249201,-197.069922,0.00019726,2]
[378665188,1754950249210,-151.0,0.00019726,2]
[378665189,1754950249219,-151.0,0.00019726,2]
[378665190,1754950249229,-1045.81,0.00019726,2]
[378665191,1754950249238,-943.82,0.00019726,2]
[378665192,1754950249247,-3701.3,0.00019726,2]
[378665193,1754950249256,-460.0,0.00019726,2]
[378665194,1754950249266,-2906.3,0.00019726,2]
[378665195,1754950249277,-643.86,0.00019726,2]
[378665196,1754950249287,-809.7,0.00019726,2]
[378665197,1754950249296,-460.0,0.00019726,2]
[378665198,1754950249307,-1487.59,0.00019726,2]
[378665199,1754950249317,-550.62,0.00019726,2]
[378665200,1754950249327,-460.0,0.00019726,2]
[378665201,1754950249337,-460.0,0.00019726,2]
[378665202,1754950249346,-460.0,0.00019726,2]
[378665203,1754950249356,-460.0,0.00019726,2]
[378665204,1754950249366,-1174.59,0.00019726,2]
[378665205,1754950249375,-151.0,0.00019726,2]
[378665206,1754950249384,-151.0,0.00019726,2]
[378665207,1754950249393,-460.0,0.00019726,2]
[378665208,1754950249402,-460.0,0.00019726,2]
[378665209,1754950249412,-460.0,0.00019726,2]
[378665210,1754950249421,-941.15,0.00019726,2]
[378665211,1754950249430,-219.183614,0.00019726,2]
[378665212,1754950249440,-460.0,0.00019726,2]
[378665213,1754950249449,-1048.49,0.00019726,2]
[378665214,1754950249459,-533.13,0.00019726,2]
[378665215,1754950249468,-2881.89,0.00019726,2]
[378665216,1754950249477,-806.46,0.00019726,2]
[378665217,1754950249486,-460.0,0.00019726,2]
[378665218,1754950249495,-261.250584,0.00019726,2]
[378665219,1754950249504,-460.0,0.00019726,2]
[378665220,1754950249514,-525.82,0.00019726,2]
[378665221,1754950249523,-460.0,0.00019726,2]
[378665222,1754950249532,-487.87,0.00019726,2]
[378665223,1754950249541,-460.0,0.00019726,2]
[378665224,1754950249550,-151.0,0.00019726,2]
[378665225,1754950249560,-151.0,0.00019726,2]
[378665226,1754950249568,-460.0,0.00019726,2]
[378665227,1754950249577,-460.0,0.00019726,2]
[378665228,1754950249587,-2299.09,0.00019726,2]
[378665229,1754950249596,-460.0,0.00019726,2]
[378665230,1754950249605,-151.0,0.00019726,2]
[378665231,1754950249616,-460.0,0.00019726,2]
[378665232,1754950249625,-591.88,0.00019726,2]
[378665233,1754950249636,-288.063256,0.00019726,2]
[378665234,1754950249646,-460.0,0.00019726,2]
[378665235,1754950249655,-460.0,0.00019726,2]
[378665236,1754950249666,-941.59,0.00019726,2]
[378665237,1754950249678,-460.0,0.00019726,2]
[378665238,1754950249687,-1450.42,0.00019726,2]
[378665239,1754950249696,-890.16,0.00019726,2]
[378665240,1754950249707,-466.25,0.00019726,2]
[378665241,1754950249717,-1160.53,0.00019726,2]
[378665242,1754950249726,-1643.29,0.00019726,2]
[378665243,1754950249736,-1075.94,0.00019726,2]
[378665244,1754950249746,-460.0,0.00019726,2]
[378665245,1754950249755,-151.0,0.00019726,2]
[378665246,1754950249764,-151.0,0.00019726,2]
[378665247,1754950249773,-460.0,0.00019726,2]
[378665248,1754950249782,-555.21,0.00019726,2]
[378665249,1754950249799,-460.0,0.00019726,2]
[378665250,1754950249808,-1868.74,0.00019726,2]
[378665251,1754950249819,-586.29,0.00019726,2]
[378665252,1754950249828,-1451.28,0.00019726,2]
[378665253,1754950249838,-2020.97,0.00019726,2]
[378665254,1754950249850,-337.79714581,0.00019726,2]
[378665255,1754950249860,-460.0,0.00019726,2]
[378665256,1754950249870,-566.69,0.00019726,2]
[378665257,1754950249879,-11449.43,0.00019726,2]
[378665258,1754950249889,-460.0,0.00019726,2]
[378665259,1754950249899,-151.0,0.00019726,2]
[378665260,1754950249909,-151.0,0.00019726,2]
[378665261,1754950249918,-510.8,0.00019726,2]
[378665262,1754950249929,-460.0,0.00019726,2]
[378665263,1754950249938,-460.0,0.00019726,2]
[378665264,1754950249948,-787.05,0.00019726,2]
[378665265,1754950249957,-336.6929454,0.00019726,2]
[378665266,1754950249966,-151.0,0.00019726,2]
[378665267,1754950249975,-151.0,0.00019726,2]
[378665268,1754950249984,-460.0,0.00019726,2]
[378665269,1754950249994,-460.0,0.00019726,2]
[378665270,1754950250003,-4437.45,0.00019726,2]
[378665271,1754950250015,-151.0,0.00019726,2]
[378665272,1754950250025,-460.0,0.00019726,2]
[378665273,1754950250036,-1174.14,0.00019726,2]
[378665274,1754950250046,-1035.9,0.00019726,2]
[378665275,1754950250058,-460.0,0.00019726,2]
[378665276,1754950250068,-460.0,0.00019726,2]
[378665277,1754950250080,-460.0,0.00019726,2]
[378665278,1754950250091,-460.0,0.00019726,2]
[378665279,1754950250101,-460.0,0.00019726,2]
[378665280,1754950250110,-1021.11,0.00019726,2]
[378665281,1754950250120,-460.0,0.00019726,2]
[378665282,1754950250129,-460.0,0.00019726,2]
[378665283,1754950250138,-212.90475573,0.00019726,2]
[378665284,1754950250147,-589.22,0.00019726,2]
[378665285,1754950250156,-856.03,0.00019726,2]
[378665286,1754950250166,-1867.34,0.00019726,2]
[378665287,1754950250175,-460.0,0.00019726,2]
[378665288,1754950250184,-654.82,0.00019726,2]
[378665289,1754950250193,-460.0,0.00019726,2]
[378665290,1754950250202,-460.0,0.00019726,2]
[378665291,1754950250212,-513.21,0.00019726,2]
[378665292,1754950250221,-671.41,0.00019726,2]
[378665293,1754950250230,-2634.21,0.00019726,2]
[378665294,1754950250239,-351.38840245,0.00019726,2]
[378665295,1754950250248,-4290.54,0.00019726,2]
[378665296,1754950250257,-460.0,0.00019726,2]
[378665297,1754950250266,-801.27,0.00019726,2]
[378665298,1754950250275,-1187.32,0.00019726,2]
[378665299,1754950250284,-460.0,0.00019726,2]
[378665300,1754950250294,-460.0,0.00019726,2]
[378665301,1754950250302,-307.377732,0.00019726,2]
[378665302,1754950250312,-307.377732,0.00019726,2]
[378665303,1754950250321,-611.42,0.00019726,2]
[378665304,1754950250331,-3505.5,0.00019726,2]
[378665305,1754950250341,-460.0,0.00019726,2]
[378665306,1754950250351,-711.17,0.00019726,2]
[378665307,1754950250365,-307.377732,0.00019726,2]
[378665308,1754950250376,-307.377732,0.00019726,2]
[378665309,1754950250385,-1072.74,0.00019726,2]
[378665310,1754950250395,-505.93,0.00019726,2]
[378665311,1754950250404,-1277.09,0.00019726,2]
[378665312,1754950250413,-2343.71,0.00019726,2]
[378665313,1754950250423,-534.51,0.00019726,2]
[378665314,1754950250433,-505.51,0.00019726,2]
[378665315,1754950250442,-2497.07,0.00019726,2]
[378665316,1754950250452,-782.72,0.00019726,2]
[378665317,1754950250462,-460.0,0.00019726,2]
[378665318,1754950250472,-551.82,0.00019726,2]
[378665319,1754950250481,-189.091646,0.00019726,2]
[378665320,1754950250491,-662.59,0.00019726,2]
[378665321,1754950250501,-460.0,0.00019726,2]
[378665322,1754950250510,-460.0,0.00019726,2]
[378665323,1754950250521,-460.0,0.00019726,2]
[378665324,1754950250532,-613.29,0.00019726,2]
[378665325,1754950250542,-460.0,0.00019726,2]
[378665326,1754950250551,-1801.27,0.00019726,2]
[378665327,1754950250561,-460.0,0.00019726,2]
[378665328,1754950250571,-561.59,0.00019726,2]
[378665329,1754950250580,-460.0,0.00019726,2]
[378665330,1754950250590,-1580.92,0.00019726,2]
[378665331,1754950250599,-1068.46,0.00019726,2]
[378665332,1754950250609,-460.0,0.00019726,2]
[378665333,1754950250620,-779.86,0.00019726,2]
[378665334,1754950250631,-460.0,0.00019726,2]
[378665335,1754950250643,-151.0,0.00019726,2]
[378665336,1754950250654,-266.301776,0.00019726,2]
[378665337,1754950250664,-460.0,0.00019726,2]
[378665338,1754950250674,-535.54,0.00019726,2]
[378665339,1754950250685,-151.0,0.00019726,2]
[378665340,1754950250694,-500.0,0.00019762,2]
[378665341,1754950250705,-646.0,0.00019769,2]
[378665342,1754950250717,-454.21824,0.0001977,2]
[378665343,1754950250727,-250.0,0.0001977,2]
[378665344,1754950250737,-500.0,0.00019773,2]
[378665345,1754950250746,-500.0,0.00019773,2]
[378665346,1754950250756,-150.0,0.00019773,2]
[378665347,1754950250767,-341.62190171,0.00019773,2]
[378665348,1754950250776,-340.52011149,0.00019773,2]
[378665349,1754950250786,-158.12880838,0.00019773,2]
[378665350,1754950250795,-158.04855829,0.00019773,2]
[378665351,1754950250805,-168.46954688,0.00019773,2]
[378665352,1754950250815,-500.0,0.00019773,2]
[378665353,1754950250824,-500.0,0.00019773,2]
[378665354,1754950250834,-157.46260862,0.00019773,2]
[378665355,1754950250844,-158.46166641,0.00019773,2]
[378665356,1754950250853,-400.13434124,0.00019773,2]
[378665357,1754950250863,-160.06680905,0.00019773,2]
[378665358,1754950250874,-248.49009127,0.00019773,2]
[378665359,1754950250883,-500.0,0.00019773,2]
[378665360,1754950250892,-160.46559195,0.00019773,2]
[378665361,1754950250905,-160.04917295,0.00019773,2]
[378665362,1754950250915,-340.09270154,0.00019773,2]
[378665363,1754950250924,-340.91787696,0.00019773,2]
[378665364,1754950250933,-158.46341349,0.00019773,2]
[378665365,1754950250943,-500.0,0.00019773,2]
[378665366,1754950250953,-500.0,0.00019773,2]
[378665367,1754950250963,-501.46256496,0.00019773,2]
[378665368,1754950250972,-500.0,0.00019773,2]
[378665369,1754950250982,-500.0,0.00019773,2]
[378665370,1754950250991,-158.44868159,0.00019773,2]
[378665371,1754950251001,-500.0,0.00019773,2]
[378665372,1754950251010,-500.0,0.00019773,2]
[378665373,1754950251020,-603.34314445,0.00019773,2]
[378665374,1754950251029,-260.55026,0.00019773,2]
[378665375,1754950251039,-159.45114521,0.00019773,2]
[378665376,1754950251049,-500.0,0.00019773,2]
[378665377,1754950251059,-500.0,0.00019773,2]
[378665378,1754950251069,-158.46471794,0.00019773,2]
[378665379,1754950251078,-202.5473623,0.00019773,2]
[378665380,1754950251087,-646.0,0.00019792,2]
[378665381,1754950251098,-274.0,0.00019792,2]
[378665382,1754950251107,-646.0,0.00019836,2]
[378665383,1754950251117,-151.0,0.00019863,2]
[378665384,1754950251127,-197.069922,0.00019863,2]
[378665385,1754950251136,-197.069922,0.00019863,2]
[378665386,1754950251145,-1068.584131,0.00019863,2]
[378665387,1754950251155,-996.07032191,0.000199,2]
[378665388,1754950251164,-151.0,0.000199,2]
[378665389,1754950251174,-151.0,0.000199,2]
[378665390,1754950251183,-151.0,0.000199,2]
[378665391,1754950251192,-259.049617,0.000199,2]
[378665392,1754950251202,-151.0,0.000199,2]
[378665393,1754950251211,-151.0,0.000199,2]
[378665394,1754950251220,-597.55159323,0.000199,2]
[378665395,1754950251230,-646.0,0.00019962,2]
[378665396,1754950251239,-151.0,0.00019962,2]
[378665397,1754950251249,-500.0,0.00019973,2]
[378665398,1754950251258,-500.0,0.00019973,2]
[378665399,1754950251267,-500.0,0.00019973,2]
[378665400,1754950251276,-500.0,0.00019973,2]
[378665401,1754950251285,-500.0,0.00019973,2]
[378665402,1754950251295,-500.0,0.00019973,2]
[378665403,1754950251304,-500.0,0.00019973,2]
[378665404,1754950251313,-500.0,0.00019973,2]
[378665405,1754950251323,-500.0,0.00019973,2]
[378665406,1754950251332,-500.0,0.00019973,2]
[378665407,1754950251341,-151.0,0.00019973,2]
[378665408,1754950251351,-646.0,0.00019985,2]
[378665409,1754950251361,-646.0,0.0001999,2]
[378665410,1754950251372,-350.69320462,0.00019999,2]
[378665411,1754950251381,-1768.0,0.0002,2]
[378665412,1754950251391,-7005.15695088,0.0002,2]
[378665413,1754950251400,-14402.1978769,0.0002,2]
[378665414,1754950251409,-56069.16055647,0.0002,2]
[378665415,1754950251419,-364.11032064,0.0002,2]
[378665416,1754950251429,-27508.9507498,0.0002,2]
[378665417,1754950251438,-7237.17604782,0.0002,10]
[378665418,1754950251447,-17001.48056737,0.0002,2]
[378665419,1754950251457,-31509.20856891,0.0002,2]
[378665420,1754950251467,-1001.16399168,0.0002,2]
[378665421,1754950251476,-151.0,0.0002,2]
[378665422,1754950251485,-151.0,0.0002,2]
[378665423,1754950251495,-151.0,0.0002,2]
[378665424,1754950251504,-151.0,0.0002,2]
[378665425,1754950251514,-151.0,0.0002,2]
[378665426,1754950251523,-151.0,0.0002,2]
[378665427,1754950251534,-460.0,0.0002,2]
[378665428,1754950251543,-151.0,0.0002,2]
[378665429,1754950251552,-153.466445,0.0002,2]
[378665430,1754950251562,-151.0,0.0002,2]
[378665431,1754950251571,-151.0,0.0002,2]
[378665432,1754950251581,-151.0,0.0002,2]
[378665433,1754950251591,-151.0,0.0002,2]
[378665434,1754950251600,-151.0,0.0002,2]
[378665435,1754950251610,-151.0,0.0002,2]
[378665436,1754950251621,-151.0,0.0002,2]
[378665437,1754950251634,-151.0,0.0002,2]
[378665438,1754950251648,-151.0,0.0002,2]
[378665439,1754950251659,-151.0,0.0002,2]
[378665440,1754950251668,-151.0,0.0002,2]
[378665441,1754950251679,-151.0,0.0002,2]
[378665442,1754950251689,-151.0,0.0002,2]
[378665443,1754950251698,-151.0,0.0002,2]
[378665444,1754950251709,-151.0,0.0002,2]
[378665445,1754950251719,-151.0,0.0002,2]
[378665446,1754950251728,-151.0,0.0002,2]
[378665447,1754950251738,-151.0,0.0002,2]
[378665448,1754950251747,-460.0,0.0002,2]
[378665449,1754950251757,-460.0,0.0002,2]
[378665450,1754950251767,-460.0,0.0002,2]
[378665451,1754950251777,-460.0,0.0002,2]
[378665452,1754950251786,-460.0,0.0002,2]
[378665453,1754950251795,-151.0,0.0002,2]
[378665454,1754950251804,-151.0,0.0002,2]
[378665455,1754950251814,-156.202268,0.0002,2]
[378665456,1754950251823,-460.0,0.0002,2]
[378665457,1754950251832,-151.0,0.0002,2]
[378665458,1754950251842,-460.0,0.0002,2]
[378665459,1754950251851,-480.72,0.0002,2]
[378665460,1754950251861,-400.0,0.0002,3]
[378665461,1754950251871,-460.0,0.0002,2]
[378665462,1754950251881,-460.0,0.0002,2]
[378665463,1754950251891,-2434.57,0.0002,2]
[378665464,1754950251901,-460.0,0.0002,2]
[378665465,1754950251911,-460.0,0.0002,2]
[378665466,1754950251921,-151.0,0.0002,2]
[378665467,1754950251931,-151.0,0.0002,2]